[Event "VII Sunway Sitges Open-B 2020"]
[Site "Sitges"]
[Date "2020.12.13"]
[Round "1.2"]
[White "Camps Abadia, Arnau"]
[Black "Ribon Calabia, Mariano"]
[Result "0-1"]
[ECO "C00"]
[WhiteElo "1177"]
[BlackElo "1733"]
[Annotator "NA RC"]
[PlyCount "124"]
[EventDate "2020.12.13"]
[EventType "swiss"]
[EventCountry "ESP"]
[SourceTitle "playchess.com"]
[Source "ChessBase"]
[SourceQuality "1"]
[TimeControl "40/5400+30:1800+30"]

1. e4 {[%emt 0:00:00]} e6 {[%emt 0:00:00]} 2. d3 {[%emt 0:00:00]} c5 {[%emt 0:00:48]} 3. Nf3 {[%emt 0:00:00]} Nc6 {[%emt 0:00:26]} 4. g3 {[%emt 0:00:20]} d5 {[%emt 0:13:41]} 5. Nbd2 {[%emt 0:00:52]} Nf6 {[%emt 0:01:48]} 6. Bg2 {[%emt 0:00:39]} Be7 {[%emt 0:02:00]} 7. O-O {[%emt 0:01:49]} dxe4 {[%emt 0:09:36]} 8. dxe4 {[%emt 0:00:47]} e5 {[%emt 0:00:21]} 9. Nc4 {[%emt 0:09:37]} Qxd1 10. Rxd1 Bg4 {[%emt 0:07:39]} 11. Rd3 {[%emt 0:08:58]} Bxf3 {[%emt 0:06:52]} 12. Bxf3 {[%emt 0:00:05]} Rd8 {[%emt 0:04:23]} 13. Rxd8+ {[%emt 0:00:48]} Kxd8 {[%emt 0:00:54]} 14. Bg5 {[%emt 0:05:00]} Kc7 {[%emt 0:03:19]} 15. Rd1 {[%emt 0:01:28]} Rd8 {[%emt 0:01:11]} 16. Rxd8 {[%emt 0:01:38]} Bxd8 {[%emt 0:00:06]} 17. c3 {[%emt 0:02:15]} h6 {[%emt 0:07:01]} 18. Bxf6 {[%emt 0:05:07]} Bxf6 {[%emt 0:00:07]} 19. a4 {[%emt 0:01:08]} Bg5 {[%emt 0:07:39]} 20. h4 {[%emt 0:04:57]} Bc1 {[%emt 0:01:39]} 21. Kf1 {[%emt 0:05:04]} a6 {[%emt 0:00:05]} 22. a5 {[%emt 0:00:03]} g6 {[%emt 0:03:08]} 23. Bg4 {[%emt 0:00:45]} h5 {[%emt 0:00:43]} 24. Bh3 {[%emt 0:00:05]} Bh6 {[%emt 0:02:07]} 25. Ke2 {[%emt 0:03:50]} g5 {[%emt 0:07:21]} 26. hxg5 {[%emt 0:06:01]} Bxg5 {[%emt 0:00:06]} 27. Bf5 {[%emt 0:00:12]} h4 {[%emt 0:06:08]} 28. Kf3 {[%emt 0:15:27]} hxg3 {[%emt 0:02:01]} 29. Kxg3 {[%emt 0:00:36]} Bc1 {[%emt 0:02:57]} 30. Bg4 {[%emt 0:04:29]} Bg5 {[%emt 0:04:01]} 31. Bh5 {[%emt 0:00:39]} f6 {[%emt 0:00:24]} 32. Bg4 {[%emt 0:01:18]} Nd8 {[%emt 0:01:16]} 33. Nb6 {[%emt 0:02:31]} Nc6 {[%emt 0:02:15]} 34. Nc4 {[%emt 0:00:46]} Ne7 {[%emt 0:00:35]} 35. Be6 {[%emt 0:00:35]} Nc8 {[%emt 0:01:26]} 36. Bd5 {[%emt 0:01:24]} b5 {[%emt 0:00:55]} 37. axb6+ {[%emt 0:03:18]} Nxb6 {[%emt 0:00:09]} 38. Nxb6 {[%emt 0:00:18]} Kxb6 {[%emt 0:00:02]} 39. b3 {[%emt 0:00:47]} Kb5 {[%emt 0:01:09]} 40. Bc4+ {[%emt 0:00:47]} Kb6 {[%emt 0:00:02]} 41. Be2 {[%emt 0:00:27]} Bd2 {[%emt 0:00:16]} 42. c4 {[%emt 0:00:00]} Ka5 {[%emt 0:00:22]} 43. Kg4 {[%emt 0:02:44]} Kb4 {[%emt 0:00:16]} 44. Bd1 {[%emt 0:00:11]} a5 {[%emt 0:01:53]} 45. Kf5 {[%emt 0:01:33]} Bg5 {[%emt 0:00:08]} 46. Ke6 {[%emt 0:01:28]} Bh4 {[%emt 0:01:12]} 47. f3 {[%emt 0:01:02]} Kc3 {[%emt 0:02:28]} 48. Kd5 {[%emt 0:03:59]} Bf2 {[%emt 0:00:16]} 49. f4 {[%emt 0:03:43]} exf4 {[%emt 0:00:23]} 50. e5 {[%emt 0:00:27]} fxe5 {[%emt 0:00:14]} 51. Kxe5 {[%emt 0:00:06]} Be3 {[%emt 0:01:02]} 52. Ke4 {[%emt 0:05:19]} Kd2 {[%emt 0:00:15]} 53. b4 {[%emt 0:03:47]} axb4 {[%emt 0:00:25]} 54. Bb3 {[%emt 0:01:11]} Kc3 {[%emt 0:00:08]} 55. Ba2 {[%emt 0:00:02]} b3 {[%emt 0:00:08]} 56. Bb1 {[%emt 0:00:05]} Kb2 {[%emt 0:02:00]} 57. Bd3 {[%emt 0:00:28]} Kc1 {[%emt 0:00:16]} 58. Kf3 {[%emt 0:00:16]} b2 {[%emt 0:00:08]} 59. Ke2 {[%emt 0:00:10]} b1=Q 60. Bxb1 Kxb1 {[%emt 0:00:59]} 61. Kd3 {[%emt 0:00:42]} Kb2 {[%emt 0:00:12]} 62. Ke2 {[%emt 0:00:03]} Kc3 {[%emt 0:00:07]} 0-1

[Event "VII Sunway Sitges Open-B 2020"]
[Site "Sitges"]
[Date "2020.12.13"]
[Round "1.3"]
[White "Fonseca, Pedro Miguel Ramos"]
[Black "Vazquez De Los Reyes, Edgar"]
[Result "1-0"]
[ECO "B32"]
[WhiteElo "1667"]
[BlackElo "1085"]
[Annotator "NA"]
[PlyCount "65"]
[EventDate "2020.12.13"]
[EventType "swiss"]
[EventCountry "ESP"]
[SourceTitle "playchess.com"]
[Source "ChessBase"]
[SourceQuality "1"]
[TimeControl "40/5400+30:1800+30"]

1. e4 c5 2. Nf3 Nc6 3. d4 cxd4 4. Nxd4 e5 5. Nb5 a6 6. Nd6+ Bxd6 7. Qxd6 Qe7 8. Qd1 Nf6 9. Nc3 O-O 10. Bg5 d6 11. Nd5 Qd8 12. c3 h6 13. Nxf6+ Kh8 14. Qh5 gxf6 15. Qxh6+ Kg8 16. Bxf6 Qxf6 17. Qxf6 Rd8 18. h4 Kf8 19. h5 Ke8 20. h6 Be6 21. h7 Kd7 22. h8=Q Rxh8 23. Rxh8 Rxh8 24. Qxh8 Ne7 25. O-O-O Ng6 26. Qb8 Ke7 27. Qxd6+ Kf6 28. Bc4 Nf8 29. Qxf8 Bxc4 30. Rd6+ Be6 31. g4 b5 32. g5+ Kg6 33. Qh6# 1-0

[Event "VII Sunway Sitges Open-B 2020"]
[Site "Sitges"]
[Date "2020.12.14"]
[Round "2.2"]
[White "Abreu Sanchez, Leonel Jesus"]
[Black "Palacios Pena, Gerardo"]
[Result "1-0"]
[ECO "D43"]
[WhiteElo "1688"]
[BlackElo "1811"]
[Annotator "NA RC"]
[PlyCount "195"]
[EventDate "2020.12.13"]
[EventType "swiss"]
[EventCountry "ESP"]
[SourceTitle "playchess.com"]
[Source "ChessBase"]
[SourceQuality "1"]
[TimeControl "40/5400+30:1800+30"]

{[%evp 10,193,9,32767,32767,32767,32767,32767,32767,32767,53,32767,32767,32767,6,32767,0,-28,-31,-10,-14,-48,-46,-57,-31,-69,-41,32767,32767,32767,32767,32767,32767,32767,32767,32767,32767,32767,32767,32767,32767,25,13,12,12,0,7,0,8,32767,32767,32767,32767,32767,32767,32767,32767,32767,32767,32767,32767,32767,32767,32767,32767,32767,32767,32767,32767,32767,32767,32767,32767,32767,32767,32767,32767,32767,0,-118,-106,-113,-116,32767,32767,32767,32767,32767,32767,32767,32767,32767,32767,32767,32767,32767,32767,0,32767,0,0,0,32767,32767,32767,32767,32767,32767,0,0,0,0,0,0,0,0,0,0,0,0,0,0,0,0,0,0,0,0,0,0,-8,0,-8,-8,0,-8,-8,-8,0,0,-5,0,0,32767,32767,32767,32767,32767,32767,32767,32767,32767,32767,32767,0,-1,0,-1,0,0,0,0,-8,0,-8,0,-8,0,0,0,0,-8,0,-8,0,0,-8,-8,-2,0,-2,-2,-8,32767,-2,-8]} 1. d4 {[%emt 0:00:00]} d5 {[%emt 0:00:58]} 2. Nf3 {[%emt 0:01:15]} Nf6 {[%emt 0:01:28]} 3. c4 {[%emt 0:01:29]} c6 {[%emt 0:02:23]} 4. Nc3 {[%emt 0:01:58]} e6 {[%emt 0:01:58]} 5. cxd5 {[%emt 0:04:54]} exd5 {[%emt 0:03:36]} 6. Bg5 {[%emt 0:01:47]} Be7 {[%emt 0:01:13]} 7. Qc2 {[%emt 0:01:20]} O-O {[%emt 0:02:18]} 8. e3 {[%emt 0:01:12]} Bg4 {[%emt 0:03:41]} 9. Ne5 {[%emt 0:11:14]} Bh5 {[%emt 0:04:54]} 10. Bd3 {[%emt 0:08:19]} Bg6 {[%emt 0:00:07]} 11. O-O {[%emt 0:17:06]} Bxd3 {[%emt 0:04:01]} 12. Qxd3 {[%emt 0:02:33]} Nbd7 {[%emt 0:00:08]} 13. f4 {[%emt 0:09:52]} Ne8 {[%emt 0:02:33]} 14. Bxe7 {[%emt 0:04:32]} Qxe7 {[%emt 0:00:09]} 15. Rab1 {[%emt 0:04:28]} Nd6 {[%emt 0:01:34]} 16. b4 {[%emt 0:05:03]} a6 {[%emt 0:00:08]} 17. Na4 {[%emt 0:06:04]} Rad8 {[%emt 0:07:04]} 18. Nc5 {[%emt 0:02:46]} Nb8 {[%emt 0:03:36]} 19. a4 {[%emt 0:03:47]} f6 {[%emt 0:00:07]} 20. Nf3 {[%emt 0:01:19]} Rfe8 {[%emt 0:00:45]} 21. Rfe1 {[%emt 0:02:33]} Nd7 {[%emt 0:00:26]} 22. Nd2 {[%emt 0:01:39]} Nxc5 {[%emt 0:00:46]} 23. bxc5 {[%emt 0:00:18]} Nf7 {[%emt 0:02:15]} 24. Rb6 {[%emt 0:00:38]} Rd7 {[%emt 0:00:15]} 25. Nb3 {[%emt 0:02:38]} g6 {[%emt 0:01:42]} 26. Na5 {[%emt 0:00:19]} Nd8 {[%emt 0:00:10]} 27. Rb3 {[%emt 0:02:00]} Qe6 {[%emt 0:02:52]} 28. Rf1 {[%emt 0:00:40]} Rde7 {[%emt 0:02:01]} 29. Rf3 {[%emt 0:00:11]} Qc8 {[%emt 0:02:14]} 30. h3 {[%emt 0:00:31]} Kh8 {[%emt 0:04:49]} 31. g4 {[%emt 0:00:49]} Rg8 {[%emt 0:01:43]} 32. Rb2 {[%emt 0:01:17]} Qc7 {[%emt 0:01:40]} 33. Nb3 {[%emt 0:00:24]} Rge8 {[%emt 0:00:35]} 34. Re2 {[%emt 0:00:34]} Ne6 {[%emt 0:02:58]} 35. Ref2 {[%emt 0:01:04]} Rf8 {[%emt 0:04:27]} 36. h4 {[%emt 0:00:30]} f5 {[%emt 0:00:20]} 37. Rg2 {[%emt 0:00:41]} fxg4 {[%emt 0:00:43]} 38. Rxg4 {[%emt 0:00:07]} Ng7 {[%emt 0:00:13]} 39. Rg5 {[%emt 0:00:55]} Qd7 {[%emt 0:06:34]} 40. Nd2 {[%emt 0:00:00]} Rf5 {[%emt 0:00:00]} 41. Rfg3 {[%emt 0:05:44]} Rxg5 {[%emt 0:03:10]} 42. hxg5 $11 {[%emt 0:01:43]} Nf5 {[%emt 0:00:52]} 43. Rf3 {[%emt 0:02:55]} Ng7 {[%emt 0:01:22]} (43... Qd8 $15) 44. Nf1 {[%emt 0:03:01] [#]} Qg4+ $1 {[%emt 0:00:32]} 45. Rg3 {[%emt 0:00:07]} Qh4 {[%emt 0:02:13]} 46. Rg2 {[%emt 0:06:41]} Nf5 {[%emt 0:00:15]} 47. Rh2 {[%emt 0:01:46]} Qg4+ {[%emt 0:10:36]} 48. Rg2 {[%emt 0:04:03]} Qh4 {[%emt 0:02:30]} 49. Rh2 {[%emt 0:01:29]} Qe1 {[%emt 0:02:54]} 50. Re2 {[%emt 0:00:26]} Qc1 {[%emt 0:06:35]} 51. Kf2 {[%emt 0:01:03]} Kg7 {[%emt 0:03:47]} 52. Qc2 {[%emt 0:02:26]} Qa1 {[%emt 0:02:07]} 53. Qa2 {[%emt 0:00:22]} Qd1 {[%emt 0:00:27]} 54. Qc2 {[%emt 0:00:32]} Qa1 {[%emt 0:01:52]} 55. Qa2 {[%emt 0:00:07]} Qxa2 {[%emt 0:00:36]} 56. Rxa2 {[%emt 0:00:08]} h5 {[%emt 0:00:06]} 57. gxh6+ {[%emt 0:00:27]} Kxh6 {[%emt 0:00:28]} 58. Re2 {[%emt 0:01:52]} g5 {[%emt 0:00:19]} 59. fxg5+ {[%emt 0:00:38]} Kxg5 {[%emt 0:00:04]} 60. Nd2 {[%emt 0:00:59]} Rh7 {[%emt 0:03:59]} 61. Nf3+ {[%emt 0:00:52]} Kf6 {[%emt 0:00:26]} 62. e4 {[%emt 0:01:57]} dxe4 {[%emt 0:00:18]} 63. Rxe4 {[%emt 0:00:08]} Rd7 {[%emt 0:00:18]} 64. Ke1 {[%emt 0:01:25]} Rh7 {[%emt 0:01:48]} 65. Kd2 {[%emt 0:00:41]} Rh1 {[%emt 0:00:05]} 66. Kc3 {[%emt 0:01:14]} Rh3 {[%emt 0:03:03]} 67. Rf4 {[%emt 0:00:03]} a5 {[%emt 0:02:34]} 68. Kc4 {[%emt 0:00:16]} Kg6 {[%emt 0:01:11]} 69. d5 {[%emt 0:01:54]} Ne3+ {[%emt 0:00:20] Double Attack} 70. Kd4 {[%emt 0:00:20]} Nxd5 {[%emt 0:00:12]} 71. Ne5+ {[%emt 0:00:21]} Kg5 {[%emt 0:01:00]} 72. Rf7 {[%emt 0:00:15]} Rh4+ {[%emt 0:01:03]} 73. Kd3 {[%emt 0:00:18]} Rb4 {[%emt 0:01:56]} 74. Nc4 {[%emt 0:00:03]} Nf4+ {[%emt 0:00:22]} 75. Kc3 {[%emt 0:00:50]} Ne2+ {[%emt 0:02:36]} 76. Kd3 {[%emt 0:00:12]} Nc1+ {[%emt 0:00:51]} 77. Kc3 {[%emt 0:01:32]} Ne2+ {[%emt 0:01:57]} 78. Kd3 {[%emt 0:00:08]} Nf4+ {[%emt 0:00:24]} 79. Kc3 {[%emt 0:00:11]} Nd5+ {[%emt 0:00:17]} 80. Kd3 {[%emt 0:00:17]} Rxa4 {[%emt 0:00:44]} 81. Rxb7 {[%emt 0:00:13]} Nb4+ {[%emt 0:00:46]} 82. Kc3 {[%emt 0:00:33]} Nd5+ {[%emt 0:00:22]} 83. Kd3 {[%emt 0:00:18]} Ra1 {[%emt 0:00:17]} 84. Ra7 {[%emt 0:00:35]} a4 {[%emt 0:00:29]} 85. Ra8 {[%emt 0:00:44]} Kf5 {[%emt 0:01:02]} 86. Nb6 {[%emt 0:01:40]} a3 {[%emt 0:00:15]} 87. Nxd5 {[%emt 0:00:28]} cxd5 {[%emt 0:00:14]} 88. c6 {[%emt 0:00:15]} Rc1 {[%emt 0:00:20]} 89. Rxa3 {[%emt 0:00:21]} Rxc6 {[%emt 0:00:19]} 90. Kd4 {[%emt 0:00:08]} Ke6 {[%emt 0:00:09]} 91. Ra4 $1 {[%emt 0:00:35]} Kd6 {[%emt 0:01:18]} 92. Rb4 {[%emt 0:00:08]} Ra6 {[%emt 0:00:13]} 93. Rb8 $1 {[%emt 0:01:27]} Ra4+ {[%emt 0:00:21]} 94. Kd3 {[%emt 0:00:07]} Rh4 {[%emt 0:00:43]} 95. Rd8+ {[%emt 0:00:23]} Kc6 {[%emt 0:00:05]} 96. Rc8+ {[%emt 0:00:08]} Kd7 {[%emt 0:00:21]} 97. Rg8 $11 {[%emt 0:00:16]} Rh8 98. Rxh8 1-0

[Event "VII Sunway Sitges Open-B 2020"]
[Site "Sitges"]
[Date "2020.12.14"]
[Round "2.3"]
[White "Gil Jimenez, David"]
[Black "Casares Bonals, Ainhoa"]
[Result "0-1"]
[ECO "B90"]
[WhiteElo "1108"]
[BlackElo "1778"]
[Annotator "NA RC"]
[PlyCount "76"]
[EventDate "2020.12.13"]
[EventType "swiss"]
[EventCountry "ESP"]
[SourceTitle "playchess.com"]
[Source "ChessBase"]
[SourceQuality "1"]
[TimeControl "40/5400+30:1800+30"]

1. e4 c5 2. Nf3 d6 3. d4 cxd4 4. Nxd4 Nf6 5. Nc3 {[%emt 1:32:30]} a6 6. f3 e5 7. Nb3 Be6 8. Be3 Be7 9. Qd2 O-O 10. O-O-O Nbd7 11. h4 b5 12. g4 Nb6 13. Kb1 b4 14. Bxb6 Qxb6 15. Nd5 Bxd5 16. exd5 a5 17. Bd3 a4 18. Nc1 Kh8 19. Bf5 Ra5 20. Be4 Rc8 21. h5 Nxe4 22. fxe4 h6 23. Rhf1 Bg5 24. Qd3 Rc7 25. Ne2 Rac5 26. Ka1 Kg8 27. c3 Rb7 28. Rb1 Qa5 29. Rf3 bxc3 30. Nxc3 a3 31. bxa3 Rxb1+ 32. Nxb1 Bc1 33. Rf2 Qc7 34. Qb3 Rc4 35. Qd3 Qc5 36. Nd2 Rc2 37. Rh2 Bxa3 38. Nb3 Qg1+ 0-1

[Event "VII Sunway Sitges Open-B 2020"]
[Site "Sitges"]
[Date "2020.12.14"]
[Round "2.4"]
[White "Clanchet Olle, Josep"]
[Black "Aeschbacher, Dimitri"]
[Result "1-0"]
[ECO "C50"]
[WhiteElo "1701"]
[BlackElo "1261"]
[Annotator "NA RC"]
[PlyCount "73"]
[EventDate "2020.12.13"]
[EventType "swiss"]
[EventCountry "ESP"]
[SourceTitle "playchess.com"]
[Source "ChessBase"]
[SourceQuality "1"]
[TimeControl "40/5400+30:1800+30"]

1. e4 {[%emt 0:00:00]} e5 {[%emt 0:00:00]} 2. Nf3 {[%emt 0:00:43]} Nc6 {[%emt 0:00:34]} 3. Bc4 {[%emt 0:01:33]} Bc5 {[%emt 0:00:53]} 4. O-O {[%emt 0:04:03]} Nf6 {[%emt 0:00:53]} 5. Nc3 O-O {[%emt 0:00:29]} 6. d3 {[%emt 0:02:27]} h6 {[%emt 0:00:50]} 7. Na4 {[%emt 0:06:22]} Be7 {[%emt 0:01:18]} 8. Be3 a6 {[%emt 0:00:34]} 9. Nc3 {[%emt 0:03:34]} d6 {[%emt 0:01:10]} 10. h3 {[%emt 0:08:14]} Be6 {[%emt 0:00:19]} 11. Bxe6 {[%emt 0:02:54]} fxe6 {[%emt 0:00:28]} 12. d4 {[%emt 0:02:07]} exd4 {[%emt 0:00:35]} 13. Nxd4 Nxd4 {[%emt 0:00:20]} 14. Bxd4 {[%emt 0:03:39]} e5 {[%emt 0:01:09]} 15. Be3 {[%emt 0:04:25]} Qe8 {[%emt 0:01:34]} 16. Nd5 Nxd5 {[%emt 0:00:30]} 17. Qxd5+ {[%emt 0:01:48]} Rf7 {[%emt 0:00:22]} 18. Qxb7 {[%emt 0:03:38]} Rb8 {[%emt 0:00:30]} 19. Qxc7 {[%emt 0:02:55]} Rxb2 {[%emt 0:02:34]} 20. Rab1 Rxb1 {[%emt 0:00:11]} 21. Rxb1 {[%emt 0:01:08]} Rf8 {[%emt 0:00:56]} 22. Rb7 {[%emt 0:01:59]} Bf6 {[%emt 0:01:38]} 23. Bxh6 {[%emt 0:09:59]} Rf7 24. Qxf7+ Qxf7 {[%emt 0:00:51]} 25. Rxf7 {[%emt 0:00:40]} Kxf7 {[%emt 0:00:00]} 26. Bc1 {[%emt 0:03:47]} Ke6 {[%emt 0:00:08]} 27. Kf1 {[%emt 0:01:01]} d5 {[%emt 0:00:10]} 28. exd5+ {[%emt 0:02:05]} Kxd5 {[%emt 0:00:51]} 29. Bb2 {[%emt 0:01:11]} Ke4 {[%emt 0:00:53]} 30. Ke2 {[%emt 0:01:22]} g6 {[%emt 0:00:22]} 31. g3 {[%emt 0:01:14]} g5 {[%emt 0:00:56]} 32. f3+ {[%emt 0:03:16]} Kd5 {[%emt 0:01:07]} 33. f4 {[%emt 0:01:15]} Ke6 {[%emt 0:01:53]} 34. fxe5 {[%emt 0:00:59]} Bxe5 {[%emt 0:00:30]} 35. Bxe5 {[%emt 0:00:30]} Kxe5 {[%emt 0:00:30]} 36. Ke3 {[%emt 0:00:30]} a5 {[%emt 0:00:30]} 37. h4 {[%emt 0:00:30]} 1-0

[Event "VII Sunway Sitges Open-B 2020"]
[Site "Sitges"]
[Date "2020.12.15"]
[Round "3.2"]
[White "Destic, Elena"]
[Black "Cuyvers, Jens"]
[Result "1-0"]
[ECO "C07"]
[WhiteElo "1745"]
[BlackElo "1446"]
[Annotator "NA RC"]
[PlyCount "93"]
[EventDate "2020.12.13"]
[EventType "swiss"]
[EventCountry "ESP"]
[SourceTitle "playchess.com"]
[Source "ChessBase"]
[SourceQuality "1"]
[TimeControl "40/5400+30:1800+30"]

1. e4 {[%emt 0:00:00]} e6 {[%emt 0:00:55]} 2. d4 {[%emt 0:00:00]} d5 {[%emt 0:00:07]} 3. Nd2 {[%emt 0:01:21]} c5 {[%emt 0:01:14]} 4. e5 {[%emt 0:02:31]} cxd4 {[%emt 0:03:46]} 5. Ngf3 {[%emt 0:02:12]} Nc6 {[%emt 0:02:23]} 6. Nb3 {[%emt 0:02:38]} Bb4+ {[%emt 0:05:22]} 7. Bd2 {[%emt 0:01:43]} Bxd2+ {[%emt 0:03:52]} 8. Qxd2 {[%emt 0:00:26]} a6 {[%emt 0:06:35]} 9. Nbxd4 {[%emt 0:01:19]} Nge7 {[%emt 0:04:03]} 10. Bd3 {[%emt 0:09:59]} h6 {[%emt 0:05:44]} 11. c3 {[%emt 0:02:31]} Bd7 {[%emt 0:03:55]} 12. O-O {[%emt 0:07:16]} Rc8 {[%emt 0:09:27]} 13. Qe2 {[%emt 0:09:04]} b5 {[%emt 0:11:29]} 14. Nxc6 {[%emt 0:02:20]} Bxc6 {[%emt 0:03:45]} 15. Kh1 {[%emt 0:05:19]} Bd7 {[%emt 0:05:52]} 16. Nd4 {[%emt 0:04:44]} Nc6 {[%emt 0:02:27]} 17. f4 {[%emt 0:02:01]} Nxd4 {[%emt 0:02:28]} 18. cxd4 {[%emt 0:00:05]} g6 {[%emt 0:02:15]} 19. g4 {[%emt 0:09:11]} Qe7 {[%emt 0:06:31]} 20. f5 {[%emt 0:04:40]} gxf5 {[%emt 0:00:51]} 21. gxf5 {[%emt 0:00:36]} Rg8 {[%emt 0:04:12]} 22. f6 {[%emt 0:01:37]} Qf8 {[%emt 0:00:23]} 23. Rg1 {[%emt 0:00:16]} Rg5 {[%emt 0:00:52]} 24. Qe3 {[%emt 0:04:26]} Qg8 {[%emt 0:01:24]} 25. Rxg5 {[%emt 0:00:36]} Qxg5 {[%emt 0:00:35]} 26. Qxg5 {[%emt 0:00:12]} hxg5 {[%emt 0:00:09]} 27. Rg1 {[%emt 0:00:18]} Kd8 {[%emt 0:00:56]} 28. Rxg5 {[%emt 0:00:11]} Rc1+ {[%emt 0:02:00]} 29. Rg1 {[%emt 0:00:39]} Rxg1+ {[%emt 0:01:29]} 30. Kxg1 {[%emt 0:00:05]} Ke8 {[%emt 0:01:02]} 31. Kf2 {[%emt 0:00:27]} Kf8 {[%emt 0:00:56]} 32. Bh7 {[%emt 0:00:11]} a5 {[%emt 0:01:54]} 33. Ke3 {[%emt 0:01:03]} b4 {[%emt 0:01:26]} 34. h4 {[%emt 0:01:13]} Ba4 {[%emt 0:01:31]} 35. Kf4 {[%emt 0:01:04]} b3 {[%emt 0:00:40]} 36. a3 {[%emt 0:00:12]} Bb5 {[%emt 0:01:00]} 37. h5 {[%emt 0:00:34]} Bc6 {[%emt 0:00:53]} 38. Kg5 {[%emt 0:01:20]} Bb5 {[%emt 0:00:38]} 39. h6 {[%emt 0:00:17]} Be8 {[%emt 0:00:58]} 40. Kf4 {[%emt 0:00:00]} Bd7 {[%emt 0:00:00]} 41. Kg4 {[%emt 0:01:36]} Bb5 {[%emt 0:01:13]} 42. Bg6 {[%emt 0:00:47]} Kg8 {[%emt 0:08:27]} 43. Bxf7+ {[%emt 0:00:59]} Kh8 {[%emt 0:00:30]} 44. Bxe6 {[%emt 0:00:12]} a4 {[%emt 0:00:36]} 45. f7 {[%emt 0:00:21]} Be2+ {[%emt 0:00:29]} 46. Kg5 {[%emt 0:00:12]} Kh7 {[%emt 0:00:16]} 47. Bf5+ {[%emt 0:00:04]} 1-0

[Event "VII Sunway Sitges Open-B 2020"]
[Site "Sitges"]
[Date "2020.12.15"]
[Round "3.4"]
[White "Casares Bonals, Asier"]
[Black "Dominguez Diaz, Francisco"]
[Result "1-0"]
[ECO "A02"]
[WhiteElo "1537"]
[BlackElo "1285"]
[Annotator "NA RC"]
[PlyCount "41"]
[EventDate "2020.12.13"]
[EventType "swiss"]
[EventCountry "ESP"]
[SourceTitle "playchess.com"]
[Source "ChessBase"]
[SourceQuality "1"]
[TimeControl "40/5400+30:1800+30"]

1. f4 {[%emt 0:00:00]} Nf6 {[%emt 0:01:08]} 2. Nf3 {[%emt 0:00:00]} d5 {[%emt 0:02:53]} 3. g3 {[%emt 0:00:00]} c6 {[%emt 0:03:30]} 4. Bg2 {[%emt 0:00:05]} Nbd7 {[%emt 0:03:36]} 5. O-O {[%emt 0:00:37]} Qc7 {[%emt 0:06:05]} 6. d3 {[%emt 0:00:46]} e5 7. fxe5 Nxe5 {[%emt 0:02:14]} 8. Nxe5 {[%emt 0:00:45]} Qxe5 {[%emt 0:06:59]} 9. Nc3 {[%emt 0:02:08]} Be7 {[%emt 0:05:37]} 10. e4 {[%emt 0:00:23]} dxe4 {[%emt 0:06:57]} 11. Nxe4 {[%emt 0:00:07]} Nxe4 {[%emt 0:04:54]} 12. Bxe4 {[%emt 0:01:41]} Bh3 {[%emt 0:03:05]} 13. Re1 {[%emt 0:01:48]} O-O 14. Bxh7+ {[%emt 0:00:06]} Kxh7 {[%emt 0:01:24]} 15. Rxe5 {[%emt 0:00:08]} Bf6 {[%emt 0:00:54]} 16. Rh5+ {[%emt 0:00:09]} Kg8 {[%emt 0:01:29]} 17. Rxh3 {[%emt 0:00:22]} g6 {[%emt 0:00:30]} 18. Bh6 {[%emt 0:00:13]} Rfe8 {[%emt 0:00:52]} 19. Qf3 {[%emt 0:00:08]} Bd4+ {[%emt 0:00:33]} 20. Kg2 {[%emt 0:00:08]} Re3 21. Bxe3 1-0